fUST/lending_fUST_20260423
["ID","MTS","AMOUNT","RATE_DAILY","PERIOD"]
[421012608,1776923447803,-833.77,0.00017099,2]
[421012609,1776923447813,-1492.32196803,0.000171,2]
[421012610,1776923447822,-5700.66959661,0.00017138,2]
[421012611,1776923447831,-1000.0,0.00017221,2]
[421012612,1776923447841,-1012.00140683,0.00017221,2]
[421012613,1776923447850,-1000.0,0.00017221,2]
[421012614,1776923447859,-1000.0,0.00017221,2]
[421012615,1776923447868,-1000.0,0.00017221,2]
[421012616,1776923447878,-772.87411635,0.00017221,2]
[421012617,1776923447887,-1000.0,0.00017221,2]
[421012618,1776923447896,-152.0,0.00017262,7]
[421012619,1776923447906,-152.0,0.0001729,7]
[421012620,1776923447915,-152.0,0.0001729,7]
[421012621,1776923447924,-1492.32196803,0.000173,2]
[421012622,1776923447934,-152.0,0.00017307,7]
[421012623,1776923447944,-600.0,0.00017339,2]
[421012624,1776923447953,-151.0,0.00017396,2]
[421012625,1776923447962,-151.0,0.00017396,2]
[421012626,1776923447971,-151.0,0.00017396,2]
[421012627,1776923447981,-204.314719,0.00017396,2]
[421012628,1776923447990,-171.56615,0.00017396,2]
[421012629,1776923447999,-833.77,0.00017396,2]
[421012630,1776923448009,-833.77,0.00017396,2]
[421012631,1776923448019,-833.77,0.00017396,2]
[421012632,1776923448028,-833.77,0.00017396,2]
[421012633,1776923448037,-833.77,0.00017396,2]
[421012634,1776923448047,-833.77,0.00017396,2]
[421012635,1776923448056,-833.77,0.00017396,2]
[421012636,1776923448066,-171.56615,0.00017396,2]
[421012637,1776923448075,-833.77,0.00017396,2]
[421012638,1776923448084,-833.77,0.00017396,2]
[421012639,1776923448094,-833.77,0.00017396,2]
[421012640,1776923448103,-833.77,0.00017396,2]
[421012641,1776923448113,-833.77,0.00017396,2]
[421012642,1776923448122,-833.77,0.00017396,2]
[421012643,1776923448131,-833.77,0.00017396,2]
[421012644,1776923448141,-833.77,0.00017396,2]
[421012645,1776923448151,-171.56615,0.00017396,2]
[421012646,1776923448160,-833.77,0.00017396,2]
[421012647,1776923448169,-833.77,0.00017396,2]
[421012648,1776923448179,-833.77,0.00017396,2]
[421012649,1776923448188,-833.93736619,0.00017396,2]
[421012650,1776923448198,-171.56615,0.00017396,2]
[421012651,1776923448208,-151.0,0.00017396,2]
[421012652,1776923448217,-3076.109822,0.00017396,2]
[421012653,1776923448227,-3076.109822,0.00017396,2]
[421012654,1776923448236,-560.819127,0.00017396,2]
[421012655,1776923448246,-3076.109822,0.00017396,2]
[421012656,1776923448256,-560.819127,0.00017396,2]
[421012657,1776923448266,-3076.109822,0.00017396,2]
[421012658,1776923448276,-560.819127,0.00017396,2]
[421012659,1776923448285,-560.819127,0.00017396,2]
[421012660,1776923448295,-151.0,0.00017396,2]
[421012661,1776923448305,-151.0,0.00017396,2]
[421012662,1776923448314,-151.0,0.00017396,2]
[421012663,1776923448323,-160.0,0.00017396,2]
[421012664,1776923448333,-151.0,0.00017396,2]
[421012665,1776923448343,-151.0,0.00017397,2]
[421012666,1776923448352,-151.0,0.00017397,2]
[421012667,1776923448362,-151.0,0.00017397,2]
[421012668,1776923448371,-151.0,0.00017397,2]
[421012669,1776923448380,-151.0,0.00017397,2]
[421012670,1776923448390,-151.0,0.00017397,2]
[421012671,1776923448399,-151.0,0.00017398,2]
[421012672,1776923448409,-151.0,0.00017398,2]
[421012673,1776923448419,-151.0,0.00017398,2]
[421012674,1776923448428,-151.0,0.00017398,2]
[421012675,1776923448438,-151.0,0.00017398,2]
[421012676,1776923448448,-151.0,0.00017398,2]
[421012677,1776923448457,-151.0,0.00017398,2]
[421012678,1776923448467,-151.0,0.00017398,2]
[421012679,1776923448477,-151.0,0.00017398,2]
[421012680,1776923448487,-151.0,0.00017398,2]
[421012681,1776923448496,-298.45004,0.00017398,2]
[421012682,1776923448506,-151.0,0.00017398,2]
[421012683,1776923448516,-3151.2510254,0.00017411,2]
[421012684,1776923448525,-200.8561915,0.00017411,2]
[421012685,1776923448534,-171.56615,0.00017452,2]
[421012686,1776923448544,-171.56615,0.00017452,2]
[421012687,1776923448553,-171.56615,0.00017452,2]
[421012688,1776923448563,-171.566149,0.00017452,2]
[421012689,1776923448573,-151.0,0.00017452,2]
[421012690,1776923448582,-500.0,0.00017497,6]
[421012691,1776923448592,-1492.32196803,0.000175,2]
[421012692,1776923448601,-151.0,0.000175,2]
[421012693,1776923448611,-151.0,0.000175,2]
[421012694,1776923448620,-151.0,0.000175,2]
[421012695,1776923448629,-420.0,0.00017504,2]
[421012696,1776923448638,-184.139268,0.00017601,2]
[421012697,1776923448648,-3076.109822,0.00017601,2]
[421012698,1776923448658,-3076.109822,0.00017601,2]
[421012699,1776923448667,-560.819127,0.00017601,2]
[421012700,1776923448677,-3076.109822,0.00017601,2]
[421012701,1776923448687,-560.819127,0.00017601,2]
[421012702,1776923448696,-3076.109825,0.00017601,2]
[421012703,1776923448706,-560.819127,0.00017601,2]
[421012704,1776923448715,-560.81912782,0.00017601,2]
[421012705,1776923448725,-151.0,0.00017601,2]
[421012706,1776923448735,-151.0,0.00017601,2]
[421012707,1776923448744,-151.0,0.00017601,2]
[421012708,1776923448754,-151.0,0.00017601,2]
[421012709,1776923448763,-1438.976,0.00017601,2]
[421012710,1776923448772,-2210.0,0.00017601,2]
[421012711,1776923448782,-647.241,0.00017601,2]
[421012712,1776923448792,-441.0,0.00017601,2]
[421012713,1776923448801,-184.0,0.00017601,2]
[421012714,1776923448810,-1492.32196803,0.000177,2]
[421012715,1776923448820,-1500.0,0.00017768,2]
[421012716,1776923448829,-1500.0,0.00017768,2]
[421012717,1776923448839,-1500.0,0.00017768,2]
[421012718,1776923448848,-1500.0,0.00017768,2]
[421012719,1776923448858,-1492.32196803,0.000178,2]
[421012720,1776923448867,-151.0,0.00017921,2]
[421012721,1776923448877,-151.0,0.00017921,2]
[421012722,1776923448886,-282.27296612,0.00017921,2]
[421012723,1776923448896,-1492.32196803,0.00018,2]
[421012724,1776923448906,-1492.32196803,0.000182,2]
[421012725,1776923448915,-5700.66959661,0.00018265,2]
[421012726,1776923448925,-158.3747884,0.00018316,2]
[421012727,1776923448934,-1510.15278729,0.00018316,2]
[421012728,1776923448944,-2000.0,0.00018316,2]
[421012729,1776923448954,-2000.0,0.00018316,2]
[421012730,1776923448964,-231.0,0.00018317,2]
[421012731,1776923448974,-1492.32196803,0.000184,2]
[421012732,1776923448983,-81119.20384135,0.0001862,2]
[421012733,1776923623193,50185.0,0.00024657,120]
[421012734,1776923698809,150.0,0.00015385,120]
[421012735,1776923738830,168.77,0.00024658,120]
[421012736,1776924022557,620.68509401,0.00024473,120]
[421012737,1776924071413,1000.0,0.0002465,120]
[421012739,1776924175226,1000.0,0.0001,120]
[421012747,1776924356112,3919.36,0.00024658,120]
[421012748,1776924445291,2100.0,0.000246,120]
[421012755,1776924631721,-384.15552416,9.998e-05,2]
[421012756,1776924631774,-815.84447584,9.998e-05,2]
[421012757,1776924631783,-180.0,9.998e-05,2]
[421012758,1776924631792,-300.0,9.998e-05,2]
[421012759,1776924631801,-150.0,9.998e-05,2]
[421012760,1776924631810,-2813.99668188,9.999e-05,2]
[421012761,1776924631819,-427.42769682,9.999e-05,2]
[421012762,1776924631828,-674.6322831,9.999e-05,2]
[421012764,1776924631837,-674.6322831,9.999e-05,2]
[421012766,1776924631846,-674.6322831,9.999e-05,2]
[421012768,1776924631855,-674.6322831,9.999e-05,2]
[421012770,1776924631864,-674.6322831,9.999e-05,2]
[421012772,1776924631873,-674.6322831,9.999e-05,2]
[421012774,1776924631882,-674.6322831,9.999e-05,2]
[421012775,1776924631891,-674.6322831,9.999e-05,2]
[421012779,1776924631901,-674.6322831,9.999e-05,2]
[421012782,1776924631911,-674.6322831,9.999e-05,2]
[421012784,1776924631922,-674.6322831,9.999e-05,2]
[421012786,1776924631931,-674.6322831,9.999e-05,2]
[421012788,1776924631939,-674.6322831,9.999e-05,2]
[421012790,1776924631949,-674.6322831,9.999e-05,2]
[421012792,1776924631958,-543.86343873,9.999e-05,2]
[421012794,1776924631969,-135.58764638,9.999e-05,2]
[421012796,1776924631978,-679.45108511,9.999e-05,2]
[421012798,1776924631987,-679.45108511,9.999e-05,2]
[421012800,1776924631996,-679.45108511,9.999e-05,2]
[421012802,1776924632005,-679.45108511,9.999e-05,2]
[421012804,1776924632014,-679.45108511,9.999e-05,2]
[421012806,1776924632024,-679.45108511,9.999e-05,2]
[421012808,1776924632033,-679.45108511,9.999e-05,2]
[421012810,1776924632042,-530.98839433,9.999e-05,2]
[421012938,1776924638122,-280.23502244,9.999e-05,2]
[421012939,1776924638132,-811.22341677,9.999e-05,2]
[421012940,1776924638142,-811.22341677,9.999e-05,2]
[421012941,1776924638151,-13829.93710043,0.0001,2]
[421012942,1776924638163,-212170.06289957,0.0001,2]
[421012943,1776924638175,-300.0,0.00010199,2]
[421012944,1776924638184,-300.0,0.00010199,2]
[421012945,1776924638194,-300.0,0.00010199,2]
[421012946,1776924638203,-300.0,0.00010199,2]
[421012947,1776924638213,-300.0,0.00010199,2]
[421012948,1776924638222,-300.0,0.00010199,2]
[421012949,1776924638231,-300.0,0.00010199,2]
[421012950,1776924638241,-300.0,0.00010199,2]
[421012951,1776924638250,-300.0,0.00010199,2]
[421012952,1776924638259,-300.0,0.00010199,2]
[421012953,1776924638269,-300.0,0.00010199,2]
[421012954,1776924638278,-300.0,0.00010199,2]
[421012955,1776924638288,-300.0,0.00010199,2]
[421012956,1776924638297,-300.0,0.00010199,2]
[421012957,1776924638307,-300.0,0.00010199,2]
[421012958,1776924638316,-600.0,0.00010199,2]
[421012959,1776924638326,-418.94490164,0.00010959,2]
[421012960,1776924638335,-720.0,0.00011219,2]
[421012961,1776924638344,-177.0,0.00011998,2]
[421012962,1776924638354,-864.0,0.00012341,2]
[421012963,1776924638363,-1000.0,0.00013575,2]
[421012964,1776924638372,-1000.0,0.00013699,2]
[421012965,1776924638382,-204.0,0.00013998,2]
[421012966,1776924638392,-1000.0,0.00014932,2]
[421012967,1776924638402,-244.0,0.00014932,2]
[421012968,1776924638411,-231.0,0.00015998,2]
[421012969,1776924638421,-1000.0,0.00016426,2]
[421012970,1776924638431,-492.0,0.00016426,2]
[421012971,1776924638440,-160.0,0.00016796,2]
[421012972,1776924638450,-645.0,0.00017763,2]
[421012973,1776924638459,-184.105,0.00017763,2]
[421012974,1776924638469,-363.831,0.00017763,2]
[421012975,1776924638478,-258.0,0.00017998,2]
[421012976,1776924638487,-80386.23025121,0.00018,2]
[421012977,1776924638497,-1000.0,0.00018068,2]
[421012978,1776924638506,-791.0,0.00018068,2]
[421012979,1776924638516,-156.8915502,0.00018302,2]
[421012980,1776924638525,-521.50086408,0.000184,2]
[421012981,1776924638534,-513.8826076,0.000184,2]
[421012982,1776924638544,-504.56538398,0.00018518,2]
[421012983,1776924638553,-445.202766,0.00018527,2]
[421012984,1776924638562,-537.6845,0.00018527,2]
[421012985,1776924638572,-557.5788265,0.00018527,2]
[421012986,1776924638581,-2150.738,0.00018527,2]
[421012987,1776924638590,-557.5788265,0.00018582,2]
[421012988,1776924638600,-159.226,0.0001862,2]
[421012989,1776924638609,-144808.00748363,0.0001862,2]
[421013012,1776924645967,-12146.23402611,0.0001862,2]
[421013013,1776924645978,-927.19930424,0.0001862,2]
[421013014,1776924645990,-253.7425319,0.0001862,2]
[421013015,1776924646130,-21369.34475,0.0001862,2]
[421013016,1776924646187,-17884.00283227,0.0001862,2]
[421013017,1776924646199,-9145.54176067,0.0001862,2]
[421013018,1776924646210,-107454.95846858,0.0001862,2]
[421013019,1776924646242,-7839.4849993,0.0001862,2]
[421013020,1776924646298,-35543.20667192,0.0001862,2]
[421013021,1776924646460,-20000.0,0.0001862,2]
[421013098,1776925832018,-1267.0497227,0.00012389,2]
[421013178,1776925838332,-571.50134546,0.00012389,2]
[421013179,1776925838342,-2313.64691012,0.00012514,2]
[421013180,1776925838382,-1546.25697056,0.00012514,2]
[421013181,1776925838393,-150.0,0.00012704,2]
[421013182,1776925838403,-1000.0,0.00013699,2]
[421013183,1776925838413,-177.0,0.00014704,2]
[421013184,1776925838423,-204.0,0.00016704,2]
[421013185,1776925838433,-160.0,0.00017402,2]
[421013186,1776925838443,-455.80029,0.00017524,2]
[421013188,1776925838453,-1126.0,0.00017546,2]
[421013192,1776925838463,-952.18495596,0.00017549,2]
[421013193,1776925838472,-394.87804225,0.00017688,2]
[421013194,1776925838484,-76.72165418,0.00017688,2]
[421013195,1776925838494,-308.19844582,0.00017688,2]
[421013196,1776925838505,-277.55792234,0.00017688,2]
[421013197,1776925838515,-560.72398482,0.00017688,2]
[421013198,1776925838525,-560.72398482,0.00017688,2]
[421013199,1776925838535,-560.72398482,0.00017688,2]
[421013200,1776925838544,-261.18259877,0.00017688,2]
[421013233,1776925846175,-944.85128539,0.00017689,2]
[421013235,1776925846190,-500.4252,0.00017689,2]
[421013236,1776925846204,-5897.7576889,0.00017689,2]
[421013240,1776925846504,-484.14,0.00017689,2]
[421013243,1776925846558,-5325.28182261,0.00017689,2]
[421013244,1776926533158,1124.1,0.00024658,120]
[421013318,1776926800111,-171.02632281,0.00013562,10]
[421013324,1776927032408,-899.02365167,0.00013699,2]
[421013330,1776927034386,1262.329,0.00024658,120]
[421013370,1776927038831,-100.97634833,0.00013699,2]
[421013372,1776927038841,-150.0,0.00014153,2]
[421013374,1776927038850,-177.0,0.00016153,2]
[421013376,1776927038860,-160.0,0.00017333,2]
[421013378,1776927038869,-151.0,0.00017476,2]
[421013380,1776927038879,-151.0,0.00017487,2]
[421013382,1776927038888,-455.80029,0.00017487,2]
[421013384,1776927038898,-3789.35822633,0.00017489,2]
[421013386,1776927038907,-1155.44552595,0.000175,2]
[421013387,1776927038917,-539.26332955,0.000175,2]
[421013389,1776927038926,-389.81501798,0.000175,7]
[421013391,1776927038936,-159.227,0.00017578,2]
[421013393,1776927038946,-537.6845,0.00017591,2]
[421013395,1776927038955,-2150.738,0.00017591,2]
[421013397,1776927038965,-200.0,0.000176,2]
[421013399,1776927038974,-150.38016461,0.00017601,2]
[421013401,1776927038984,-557.5788265,0.00017646,2]
[421013403,1776927038994,-500.0,0.00017673,2]
[421013405,1776927039005,-445.202766,0.00017678,2]
[421013407,1776927039014,-500.0,0.00017688,2]
[421013409,1776927039023,-410.02945772,0.00017688,2]
[421013411,1776927039034,-476.67747862,0.00017688,2]
[421013412,1776927039044,-500.0,0.00017688,2]
[421013414,1776927039054,-500.0,0.00017688,2]
[421013416,1776927039064,-500.0,0.00017688,2]
[421013418,1776927039074,-500.0,0.00017688,2]
[421013420,1776927039084,-500.0,0.00017688,2]
[421013422,1776927039094,-500.0,0.00017688,2]
[421013424,1776927039103,-500.0,0.00017688,2]
[421013426,1776927039113,-500.0,0.00017688,2]
[421013428,1776927039122,-500.0,0.00017688,2]
[421013430,1776927039132,-500.0,0.00017688,2]
[421013432,1776927039144,-500.0,0.00017688,2]
[421013434,1776927039153,-502.70751272,0.00017688,2]
[421013436,1776927039163,-500.0,0.00017688,2]
[421013438,1776927039172,-500.0,0.00017688,2]
[421013440,1776927039182,-500.0,0.00017688,2]
[421013442,1776927039192,-500.0,0.00017688,2]
[421013444,1776927039202,-500.0,0.00017688,2]
[421013446,1776927039211,-500.0,0.00017688,2]
[421013448,1776927039220,-500.0,0.00017688,2]
[421013450,1776927039230,-500.0,0.00017688,2]
[421013452,1776927039239,-500.0,0.00017688,2]
[421013454,1776927039248,-500.0,0.00017688,2]
[421013456,1776927039262,-500.0,0.00017688,2]
[421013458,1776927039271,-500.0,0.00017688,2]
[421013460,1776927039281,-500.0,0.00017688,2]
[421013462,1776927039291,-500.0,0.00017688,2]
[421013464,1776927039301,-500.0,0.00017688,2]
[421013466,1776927039310,-500.0,0.00017688,2]
[421013468,1776927039319,-500.0,0.00017688,2]
[421013470,1776927039328,-500.0,0.00017688,2]
[421013471,1776927039338,-500.0,0.00017688,2]
[421013473,1776927039350,-500.0,0.00017688,2]
[421013475,1776927039360,-500.0,0.00017688,2]
[421013477,1776927039371,-500.0,0.00017688,2]
[421013479,1776927039381,-500.0,0.00017688,2]
[421013481,1776927039390,-500.0,0.00017688,2]
[421013483,1776927039400,-500.0,0.00017688,2]
[421013485,1776927039409,-339.66139746,0.00017688,2]
[421013487,1776927039419,-607.3437979,0.00017688,2]
[421013489,1776927039429,-500.0,0.00017688,2]
[421013491,1776927039438,-500.0,0.00017688,2]
[421013494,1776927039454,-500.0,0.00017688,2]
[421013495,1776927039464,-500.0,0.00017688,2]
[421013497,1776927039473,-500.0,0.00017688,2]
[421013499,1776927039482,-500.0,0.00017688,2]
[421013501,1776927039491,-500.0,0.00017688,2]
[421013503,1776927039501,-500.0,0.00017688,2]
[421013505,1776927039510,-500.0,0.00017688,2]
[421013507,1776927039520,-500.0,0.00017688,2]
[421013509,1776927039529,-500.0,0.00017688,2]
[421013511,1776927039538,-500.0,0.00017688,2]
[421013513,1776927039547,-227188.935349,0.00017689,2]
[421013545,1776927040786,-841.52588397,0.00017689,2]
[421013546,1776927040797,-6855.87471478,0.00017689,2]
[421013547,1776927040808,-1525.57541363,0.00017689,2]
[421013548,1776927040840,-23790.55009161,0.00017689,2]
[421013558,1776927046508,-5605.71476054,0.00017689,2]
[421013559,1776927046519,-617.46398293,0.00017689,2]
[421013560,1776927046531,-533141.42032551,0.00017689,2]
[421013561,1776927046540,-578.20924308,0.00017701,2]
[421013562,1776927046549,-2772.28075863,0.00017749,2]
[421013563,1776927046558,-353.93789249,0.00017756,2]
[421013564,1776927046567,-3785.02507538,0.00018049,2]
[421013565,1776927046576,-2230.315306,0.00018139,2]
[421013566,1776927046585,-4379.29497636,0.00018149,2]
[421013567,1776927046594,-204.0,0.00018153,2]
[421013568,1776927046603,-1000.0,0.00018221,2]
[421013569,1776927046613,-461.67526834,0.00018226,2]
[421013570,1776927046622,-200.0,0.00018301,2]
[421013574,1776927046908,-289.4171455,0.00018308,2]
[421013575,1776927046930,-325.3967881,0.00018308,2]
[421013576,1776927046940,-4973.56487734,0.00018349,2]
[421013577,1776927046949,-152.0,0.00018392,7]
[421013578,1776927046959,-150.6421436,0.00018393,2]
[421013579,1776927046968,-152.0,0.0001841,7]
[421013580,1776927046978,-227.12588365,0.00018473,2]
[421013581,1776927046987,-500.0,0.00018518,2]
[421013582,1776927046996,-500.0,0.00018519,2]
[421013583,1776927047005,-500.0,0.00018519,2]
[421013584,1776927047014,-500.0,0.00018519,2]
[421013585,1776927047024,-500.0,0.00018519,2]
[421013586,1776927047033,-500.0,0.00018519,2]
[421013587,1776927047041,-500.0,0.00018519,2]
[421013588,1776927047050,-500.0,0.00018519,2]
[421013589,1776927047059,-536.3211193,0.00018519,2]
[421013590,1776927047069,-3789.35822633,0.00018548,2]
[421013591,1776927047078,-5567.83477832,0.00018549,2]
[421013592,1776927047087,-203.0,0.0001863,2]
[421013593,1776927047096,-261.33,0.0001863,2]
[421013594,1776927047106,-6162.1046793,0.00018649,2]
[421013595,1776927047116,-2312.83697232,0.00018687,2]
[421013596,1776927047125,-6315.11175366,0.00018749,2]
[421013597,1776927047134,-1500.0,0.00018768,2]
[421013598,1776927047143,-445.202766,0.00018774,2]
[421013599,1776927047153,-7133.12966283,0.00018949,2]
[421013600,1776927047163,-600.0,0.00018991,2]
[421013601,1776927047172,-1344.5030634,0.00019,2]
[421013602,1776927047181,-600.384,0.00019088,2]
[421013603,1776927047190,-455.8385479,0.00019121,2]
[421013604,1776927047199,-455.80029,0.0001913,2]
[421013605,1776927047209,-455.80029,0.0001913,2]
[421013606,1776927047218,-455.8002901,0.0001913,2]
[421013607,1776927047227,-7717.50224706,0.00019149,2]
[421013608,1776927047237,-2398.4119403,0.00019235,2]
[421013609,1776927047246,-2000.0,0.00019316,2]
[421013610,1776927047255,-8301.8748313,0.00019349,2]
[421013611,1776927047265,-158.0,0.00019397,3]
[421013612,1776927047275,-500.0,0.00019573,2]
[421013613,1776927047284,-353166.09496851,0.000196,2]
[421013614,1776927047294,-3789.35822633,0.00019606,2]
[421013615,1776927047303,-8995.41762531,0.00019649,2]
[421013616,1776927047312,-2487.15318209,0.00019783,2]
[421013617,1776927047321,-9552.59143317,0.00019849,2]
[421013618,1776927047330,-2500.0,0.00019864,2]
[421013619,1776927047339,-1000.0,0.0002,3]
[421013620,1776927047348,-420.14109033,0.0002,12]
[421013621,1776927047357,-305.0,0.0002,2]
[421013622,1776927047368,-605.0,0.0002,2]
[421013623,1776927047378,-334.0,0.0002,2]
[421013624,1776927047388,-1589.0,0.0002,2]
[421013625,1776927047399,-315.0,0.0002,2]
[421013626,1776927047409,-180.0,0.0002,2]
[421013627,1776927047418,-1000.0,0.0002,2]
[421013628,1776927047428,-1000.0,0.00020121,2]
[421013629,1776927047437,-10640.65138515,0.00020149,2]
[421013630,1776927047447,-231.0,0.00020153,2]
[421013631,1776927047457,-2579.17784983,0.00020331,2]
[421013632,1776927047467,-3000.0,0.00020412,2]
[421013633,1776927047476,-3789.35822633,0.00020665,2]
[421013634,1776927047485,-1500.0,0.00020668,2]
[421013635,1776927047495,-229.594921,0.00020678,2]
[421013636,1776927047504,-1186.82307182,0.00020698,2]
[421013637,1776927047513,-5000.0,0.00020767,2]
[421013638,1776927047523,-5000.0,0.00020767,2]
[421013639,1776927047532,-5000.0,0.00020767,2]
[421013640,1776927047541,-1841.521922,0.00020767,2]
[421013641,1776927047550,-151.0,0.00020767,2]
[421013642,1776927047560,-151.0,0.00020767,2]
[421013643,1776927047569,-325.2263125,0.00020767,2]
[421013644,1776927047578,-201.0,0.0002083,2]
[421013645,1776927047587,-2674.60743027,0.00020879,2]
[421013646,1776927047597,-720.0,0.00020891,2]
[421013647,1776927047607,-3500.0,0.0002096,2]
[421013648,1776927047616,-151.0,0.00020994,7]
[421013649,1776927047625,-12260.0,0.00021,4]
[421013650,1776927047635,-386.48,0.00021,2]
[421013651,1776927047644,-3000.0,0.00021,2]
[421013652,1776927047653,-305.0,0.00021,2]
[421013653,1776927047663,-605.0,0.00021,2]
[421013654,1776927047673,-334.0,0.00021,2]
[421013655,1776927047682,-1589.0,0.00021,2]
[421013656,1776927047691,-315.0,0.00021,2]
[421013657,1776927047700,-180.0,0.00021,2]
[421013658,1776927047709,-3000.0,0.0002101,2]
[421013659,1776927047719,-3000.0,0.0002102,2]
[421013660,1776927047728,-3000.0,0.0002103,2]
[421013661,1776927047738,-3000.0,0.0002104,2]
[421013662,1776927047747,-3000.0,0.0002105,2]
[421013663,1776927047756,-3000.0,0.0002106,2]
[421013664,1776927047765,-3000.0,0.0002107,2]
[421013665,1776927047775,-3000.0,0.0002108,2]
[421013666,1776927047784,-3000.0,0.0002109,2]
[421013667,1776927047793,-3000.0,0.000211,2]
[421013668,1776927047803,-259.638814,0.000211,2]
[421013669,1776927047812,-259.638814,0.000211,2]
[421013670,1776927047821,-259.638814,0.000211,2]
[421013671,1776927047831,-259.638814,0.000211,2]
[421013672,1776927047841,-3000.0,0.0002111,2]
[421013673,1776927047850,-226.32,0.0002112,5]
[421013674,1776927047859,-3000.0,0.0002112,2]
[421013675,1776927047869,-451.47347218,0.00021123,3]
[421013676,1776927047878,-3000.0,0.0002113,2]
[421013677,1776927047888,-3000.0,0.0002114,2]
[421013678,1776927047897,-151.0,0.0002114,2]
[421013679,1776927047906,-157.350962,0.0002114,2]
[421013680,1776927047915,-3000.0,0.0002115,2]
[421013681,1776927047924,-3000.0,0.0002116,2]
[421013682,1776927047934,-3000.0,0.0002117,2]
[421013683,1776927047943,-3000.0,0.0002118,2]
[421013684,1776927047952,-3000.0,0.0002119,2]
[421013685,1776927047961,-1707.28,0.000212,2]
[421013686,1776927047970,-1707.28,0.000212,2]
[421013687,1776927047979,-1707.28,0.000212,2]
[421013688,1776927047989,-1123.3949,0.000212,2]
[421013689,1776927047999,-1508.16,0.000212,2]
[421013690,1776927048008,-1508.16,0.000212,2]
[421013691,1776927048017,-803.4976,0.000212,2]
[421013692,1776927048027,-1508.77,0.000212,2]
[421013693,1776927048036,-1508.77,0.000212,2]
[421013694,1776927048045,-1506.826,0.000212,2]
[421013695,1776927048054,-1506.82,0.000212,2]
[421013696,1776927048063,-299.09601231,0.000212,2]
[421013697,1776927048073,-3936.858618,0.000212,2]
[421013698,1776927048083,-2000.0,0.00021216,2]
[421013699,1776927048092,-163.13,0.00021229,7]
[421013700,1776927048101,-278.75,0.00021324,7]
[421013701,1776927048111,-290.87784798,0.00021324,7]
[421013702,1776927048120,-151.0,0.000215,7]
[421013703,1776927048129,-4000.0,0.00021508,2]
[421013704,1776927048138,-18850.580002,0.00021657,30]
[421013705,1776927048147,-3789.35822633,0.00021724,2]
[421013706,1776927048156,-2500.0,0.00021764,2]
[421013707,1776927048165,-253.194345,0.00021918,2]
[421013708,1776927048174,-549.0,0.00021918,42]
[421013709,1776927048184,-150.0,0.00021918,2]
[421013710,1776927048193,-4378.87327734,0.0002194,2]
[421013711,1776927048203,-166.69,0.00021947,7]
[421013712,1776927048212,-297.73,0.00021947,7]
[421013713,1776927048222,-174.43,0.0002197,7]
[421013714,1776927048231,-503.258,0.00022,2]
[421013715,1776927048240,-305.0,0.00022,2]
[421013716,1776927048250,-605.0,0.00022,2]
[421013717,1776927048259,-334.0,0.00022,2]
[421013718,1776927048268,-1589.0,0.00022,2]
[421013719,1776927048277,-315.0,0.00022,2]
[421013720,1776927048287,-180.0,0.00022,2]
[421013721,1776927048296,-163.15,0.00022,7]
[421013722,1776927048306,-160.0,0.00022003,5]
[421013723,1776927048315,-151.0,0.00022006,7]
[421013724,1776927048324,-951766.55007115,0.00022014,2]
[421013725,1776927048338,-652.25,0.00022014,2]
[421013726,1776927048349,-56179.10444142,0.00022014,2]
[421013727,1776927048360,-984.7182516,0.00022014,2]